bitfinex-derivatives/quotes_BTCF0:USTF0_20250905
["timestamp","ask_amount","ask_price","bid_price","bid_amount"]
[1757081499071,1.71207101,112450.0,112440.0,0.90620734]
[1757081499265,1.01714265,112450.0,112440.0,0.90772734]
[1757081499466,0.99473265,112450.0,112440.0,0.90772734]
[1757081499674,1.46207101,112450.0,112440.0,0.90976734]
[1757081499974,1.46207101,112450.0,112440.0,0.00398619]
[1757081500373,1.71207101,112450.0,112440.0,0.00398619]
[1757081500566,1.75012101,112450.0,112440.0,0.00398619]
[1757081501164,1.30519265,112450.0,112440.0,0.00398619]
[1757081501368,1.75012101,112450.0,112440.0,0.00398619]
[1757081501568,1.50012101,112450.0,112440.0,0.00398619]
[1757081501765,1.05519265,112450.0,112440.0,0.00398619]
[1757081502075,1.50012101,112450.0,112440.0,0.00398619]
[1757081502581,1.47771101,112450.0,112440.0,0.00398619]
[1757081502874,1.47771101,112450.0,112440.0,0.13287609]
[1757081502875,1.03278265,112450.0,112440.0,0.13287609]
[1757081503179,0.67198265,112450.0,112440.0,0.13287609]
[1757081503381,0.67198265,112450.0,112440.0,0.13297609]
[1757081503679,1.03278265,112450.0,112440.0,0.04405619]
[1757081504070,1.75012101,112450.0,112440.0,0.00408619]
[1757081504266,1.75012101,112450.0,112440.0,0.01794066]
[1757081505179,2.65684101,112450.0,112440.0,0.00408619]
[1757081505774,2.40684101,112450.0,112440.0,0.00507909]
[1757081505974,0.02236,112440.0,112410.0,0.02372]
[1757081506173,0.68665356,112420.0,112410.0,0.96932]
[1757081506478,0.378,112420.0,112410.0,1.0582636]
[1757081506874,0.34,112420.0,112410.0,1.0582636]
[1757081507377,0.34,112420.0,112410.0,1.21932]
[1757081507583,0.34,112420.0,112410.0,1.22332]
[1757081507882,0.34,112420.0,112410.0,1.3122636]
[1757081508085,0.34,112420.0,112410.0,2.11799196]
[1757081508280,0.34,112420.0,112410.0,0.7635036]
[1757081508583,0.341,112420.0,112410.0,1.3119036]
[1757081508780,0.341,112420.0,112410.0,0.7705044]
[1757081509076,0.34,112420.0,112410.0,1.22488]
[1757081509282,0.378,112420.0,112410.0,0.97488]
[1757081509483,0.378,112420.0,112410.0,0.06776]
[1757081509780,0.378,112420.0,112410.0,0.97188]
[1757081510581,1.20613836,112420.0,112410.0,0.90756]
[1757081510779,1.18372836,112420.0,112410.0,0.94797]
[1757081511177,0.7388,112420.0,112410.0,0.97132]
[1757081511581,1.18372836,112420.0,112410.0,0.94797]
[1757081511782,0.7388,112420.0,112410.0,0.94797]
[1757081512084,1.18372836,112420.0,112410.0,0.94797]
[1757081512580,2.12499192,112420.0,112410.0,0.00221819]
[1757081512773,1.45913836,112420.0,112410.0,0.00121819]
[1757081512979,2.98375192,112420.0,112410.0,0.01506113]
[1757081513281,2.98375192,112420.0,112410.0,0.0152908]
[1757081513477,2.07699192,112420.0,112410.0,0.0152908]
[1757081514076,2.07699192,112420.0,112410.0,0.00144786]
[1757081514379,3.03343192,112420.0,112410.0,0.00144786]
[1757081514574,2.65343192,112420.0,112410.0,0.00144786]
[1757081514775,2.10699192,112420.0,112410.0,0.00144786]
[1757081515276,0.02236,112400.0,112370.0,0.93141]
[1757081515470,0.038,112380.0,112370.0,0.97172]
[1757081515676,0.368,112380.0,112370.0,1.0651343]
[1757081516078,0.368,112380.0,112370.0,0.98500766]
[1757081516278,0.81292836,112380.0,112370.0,0.97684]
[1757081516480,0.81292836,112380.0,112370.0,0.0682]
[1757081516681,0.81292836,112380.0,112370.0,0.00644]
[1757081516682,1.48386192,112380.0,112370.0,0.00644]
[1757081516983,0.33,112380.0,112370.0,0.7699749]
[1757081517283,0.3628,112420.0,112400.0,0.1527063]
[1757081517484,1.16372836,112420.0,112400.0,0.93179]
[1757081517678,0.32585356,112410.0,112400.0,1.0611463]
[1757081517888,0.3,112410.0,112400.0,1.4219463]
[1757081518073,0.80572836,112430.0,112400.0,1.4219463]
[1757081518074,0.3988,112430.0,112420.0,0.1293405]
[1757081518382,0.6908,112430.0,112420.0,1.0607705]
[1757081518580,0.97865356,112430.0,112420.0,1.0607705]
[1757081518778,0.97865356,112430.0,112420.0,1.0604105]
[1757081518989,0.6908,112430.0,112420.0,1.0601705]
[1757081520077,0.6908,112430.0,112420.0,1.06139093]
[1757081520274,0.33,112430.0,112420.0,1.42219093]
[1757081520481,0.6908,112430.0,112420.0,0.15391073]
[1757081520785,0.3608,112450.0,112440.0,0.1526745]
[1757081520985,0.038,112460.0,112450.0,0.152665]
[1757081521182,0.29,112460.0,112450.0,0.152665]
[1757081521587,0.77292836,112460.0,112450.0,0.97068]
[1757081521782,0.77292836,112460.0,112450.0,0.06376]
[1757081521983,0.05905957,112450.0,112420.0,0.001]
[1757081522189,1.51496192,112430.0,112420.0,0.001]
[1757081522485,3.02412192,112430.0,112420.0,0.001]
[1757081522685,0.038,112410.0,112400.0,0.1668]
[1757081522893,1.51142192,112410.0,112400.0,0.1668]
[1757081523092,1.76142192,112410.0,112390.0,0.90932]
[1757081523284,0.77078192,112400.0,112390.0,0.90932]
[1757081523484,1.14336192,112400.0,112380.0,2.10327]
[1757081523685,0.28785356,112390.0,112380.0,1.74247]
[1757081523890,0.36,112390.0,112380.0,2.740431]
[1757081524292,0.36,112390.0,112380.0,2.65147]
[1757081524992,0.64785356,112390.0,112380.0,1.71912]
[1757081525181,0.36,112390.0,112380.0,2.7401712]
[1757081525385,0.361,112390.0,112380.0,3.3539712]
[1757081525986,0.361,112390.0,112380.0,3.3549712]
[1757081526186,0.361,112390.0,112380.0,3.44395104]
[1757081526388,0.001,112390.0,112380.0,3.8888794]
[1757081526590,0.001,112390.0,112380.0,3.8901002]
[1757081526785,0.001,112390.0,112380.0,3.44517184]
[1757081528487,0.001,112390.0,112380.0,3.8901002]
[1757081528686,0.341,112390.0,112380.0,3.8901002]
[1757081529196,0.0001,112400.0,112390.0,0.1293635]
[1757081529385,0.0001,112410.0,112400.0,0.1527056]
[1757081529590,0.038,112430.0,112420.0,0.06376]
[1757081529789,0.388,112430.0,112420.0,1.34132]
[1757081530189,0.92585356,112430.0,112420.0,1.34132]
[1757081530503,0.92585356,112430.0,112420.0,0.98052]
[1757081530700,0.63785356,112430.0,112420.0,1.3425408]
[1757081530894,0.67585356,112430.0,112420.0,0.9817408]
[1757081531297,0.63785356,112430.0,112420.0,1.3425408]
[1757081531796,0.63785356,112430.0,112420.0,1.431471]
[1757081532101,0.67885356,112430.0,112420.0,0.9827408]
[1757081532597,0.67885356,112430.0,112420.0,0.0426308]
[1757081532798,1.12378192,112430.0,112420.0,0.95982009]
[1757081532991,1.75722192,112430.0,112420.0,0.91941009]
[1757081533396,0.67885356,112430.0,112420.0,0.98317009]
[1757081533600,0.67885356,112430.0,112420.0,1.07210209]
[1757081533798,0.64085356,112430.0,112420.0,1.07210209]
[1757081534000,0.353,112430.0,112420.0,2.12806157]
[1757081534303,0.3608,112450.0,112440.0,0.06376]
[1757081534505,0.6988,112450.0,112440.0,0.98124]
[1757081534694,1.45142192,112450.0,112420.0,0.47552331]
[1757081534899,0.3988,112440.0,112430.0,0.91972121]
[1757081535103,1.14372836,112440.0,112430.0,0.96009121]
[1757081535301,1.07078192,112440.0,112430.0,0.98226121]
[1757081535503,1.07078192,112440.0,112430.0,0.96009121]
[1757081535504,1.43158192,112440.0,112430.0,0.96009121]
[1757081535799,0.98665356,112440.0,112430.0,0.96009121]
[1757081536005,0.62585356,112440.0,112430.0,1.07118591]
[1757081536203,0.98665356,112440.0,112430.0,0.98226121]
[1757081536503,0.62585356,112440.0,112430.0,0.98226121]
[1757081536704,1.07278192,112440.0,112430.0,0.98226121]
[1757081536907,0.62785356,112440.0,112430.0,1.07118631]
[1757081537498,0.98865356,112440.0,112430.0,1.07118631]
[1757081537701,0.99165356,112440.0,112430.0,0.96009121]
[1757081537908,1.43658192,112440.0,112430.0,0.96009121]
[1757081538200,1.70576192,112440.0,112430.0,0.00244121]
[1757081538400,1.70676192,112440.0,112430.0,0.00244121]
[1757081538595,2.05676192,112440.0,112430.0,0.00244121]
[1757081538792,2.05676192,112440.0,112420.0,0.00444]
[1757081538996,0.03855,112400.0,112390.0,0.0001]
[1757081539193,1.45987192,112400.0,112370.0,0.02217]
[1757081539403,0.48347836,112380.0,112370.0,0.06036]
[1757081539607,0.67196356,112380.0,112370.0,0.42116]
[1757081540200,1.03276356,112380.0,112370.0,0.06036]
[1757081540507,0.67196356,112380.0,112370.0,0.06036]
[1757081540706,0.67196356,112380.0,112370.0,0.06236]
[1757081540896,1.47469192,112380.0,112370.0,0.95775]
[1757081541099,1.02976356,112380.0,112370.0,0.95775]
[1757081541294,1.74235192,112380.0,112370.0,0.00322095]
[1757081541498,1.74671903,112380.0,112370.0,0.00322095]
[1757081541811,1.74771903,112380.0,112370.0,0.00622095]
[1757081542308,1.76771903,112380.0,112370.0,0.00622095]
[1757081542501,2.11771903,112380.0,112370.0,0.00622095]
[1757081542700,1.83430547,112380.0,112370.0,0.00622095]
[1757081543098,0.02218,112360.0,112340.0,0.91916]
[1757081543405,1.13205903,112350.0,112340.0,0.91916]
[1757081543701,1.45423903,112350.0,112320.0,0.39869584]
[1757081543907,1.13205903,112330.0,112310.0,1.519647]
[1757081544204,0.35865,112330.0,112320.0,0.5101754]
[1757081544404,0.32,112330.0,112320.0,0.5101754]
[1757081544599,0.315,112330.0,112320.0,0.7601754]
[1757081544805,0.315,112330.0,112320.0,0.52572115]
[1757081544996,0.315,112330.0,112320.0,0.77572115]
[1757081545199,0.316,112330.0,112320.0,0.77572115]
[1757081545400,0.316,112330.0,112320.0,1.59104]
[1757081545598,0.316,112330.0,112320.0,1.6800554]
[1757081545795,0.315,112330.0,112320.0,2.12935087]
[1757081546000,0.03865,112340.0,112330.0,0.06036]
[1757081546303,0.33,112340.0,112330.0,0.06036]
[1757081546607,0.84864547,112370.0,112360.0,0.06036]
[1757081546808,1.19019547,112370.0,112350.0,0.91964]
[1757081547109,0.03855,112350.0,112340.0,0.98]
[1757081547409,1.48205903,112350.0,112340.0,0.98]
[1757081547708,1.48205903,112350.0,112340.0,1.0689995]
[1757081547899,0.67196356,112350.0,112340.0,1.0689995]
[1757081548098,0.67196356,112350.0,112340.0,1.4297995]
[1757081548294,0.67196356,112350.0,112340.0,1.0690995]
[1757081548499,1.48205903,112350.0,112340.0,1.0690995]
[1757081548699,1.12125903,112350.0,112340.0,1.0690995]
[1757081548897,1.12625903,112350.0,112340.0,1.0700995]
[1757081549102,1.12625903,112350.0,112340.0,1.07132078]
[1757081549601,1.73705903,112350.0,112340.0,0.00232128]
[1757081549796,1.82279312,112350.0,112340.0,0.00232128]
[1757081550105,2.13279312,112350.0,112340.0,0.00232128]
[1757081550306,1.82279312,112350.0,112340.0,0.00232128]
[1757081550603,1.48905903,112350.0,112340.0,0.04051128]
[1757081550804,1.03976356,112350.0,112340.0,0.06268128]
[1757081551005,1.48905903,112350.0,112340.0,0.06268128]
[1757081551302,1.48905903,112350.0,112340.0,0.00232128]
[1757081551509,1.03976356,112350.0,112340.0,0.04051128]
[1757081551707,1.48905903,112350.0,112340.0,0.12951088]
[1757081551904,1.48905903,112350.0,112340.0,0.04051128]
[1757081552105,1.75722903,112350.0,112340.0,0.00232128]
[1757081552410,2.07722903,112350.0,112340.0,0.00232128]
[1757081552712,1.75722903,112350.0,112340.0,0.00232128]
[1757081552903,2.06722903,112350.0,112340.0,0.00232128]
[1757081553807,2.13995858,112350.0,112340.0,0.00232128]
[1757081554005,1.69066311,112350.0,112340.0,0.00232128]
[1757081554204,2.13995858,112350.0,112310.0,0.02217]
[1757081554406,0.68276356,112320.0,112310.0,0.03819]
[1757081554605,0.82575547,112360.0,112350.0,2.66271854]
[1757081554805,3.20361094,112360.0,112350.0,1.85405288]
[1757081555509,2.55502,112360.0,112350.0,1.85405288]
[1757081555696,3.20361094,112360.0,112350.0,1.85405288]
[1757081556102,3.27473946,112360.0,112350.0,1.85405288]
[1757081556314,3.52473946,112360.0,112350.0,1.04310694]
[1757081556507,2.60697946,112360.0,112350.0,0.23510694]
[1757081556907,1.70838852,112360.0,112350.0,0.23510694]
[1757081557108,3.28597946,112360.0,112350.0,0.23510694]
[1757081557302,3.53597946,112360.0,112340.0,0.00445]
[1757081557502,0.80909547,112350.0,112340.0,0.00445]
[1757081557811,2.18892,112350.0,112340.0,0.00445]
[1757081558009,1.93892,112350.0,112340.0,0.00445]
[1757081558202,1.45909547,112350.0,112340.0,0.00445]
[1757081558408,0.65,112350.0,112340.0,0.00445]
[1757081558604,1.32888,112350.0,112340.0,0.02662]
[1757081558813,0.38,112350.0,112340.0,0.38742]
[1757081559109,2.41697547,112350.0,112340.0,0.00545]
[1757081559308,2.03677547,112350.0,112340.0,0.36625]
[1757081559609,0.658,112350.0,112340.0,0.36625]
[1757081559799,1.72809547,112350.0,112340.0,0.00545]
[1757081560002,2.65853547,112350.0,112340.0,0.00545]
[1757081561006,2.65853547,112350.0,112340.0,0.00743566]
[1757081561511,2.20924,112350.0,112340.0,0.00743566]
[1757081561707,2.65853547,112350.0,112340.0,0.00743566]
[1757081561906,2.65853547,112350.0,112320.0,0.0001]
[1757081562208,1.17089547,112330.0,112310.0,0.0001]
[1757081562414,2.18995094,112320.0,112310.0,0.01387568]
[1757081562606,2.87995094,112320.0,112310.0,0.01387568]
[1757081562808,3.12995094,112320.0,112310.0,0.01387568]
[1757081563006,3.12995094,112320.0,112300.0,0.01]
[1757081563203,1.0509,112320.0,112300.0,0.01]
[1757081563414,0.6901,112320.0,112300.0,0.39297]
[1757081563608,1.13939547,112320.0,112300.0,0.39297]
[1757081563806,2.06935547,112320.0,112300.0,0.39297]
[1757081564118,1.62006,112320.0,112300.0,0.43116]
[1757081564310,2.06935547,112320.0,112300.0,0.39297]
[1757081564511,2.43015547,112320.0,112300.0,0.01]
[1757081564712,0.44929547,112310.0,112300.0,0.01]
[1757081564910,1.09929547,112310.0,112300.0,0.01]
[1757081565109,2.06752547,112310.0,112300.0,0.01]
[1757081565313,2.06752547,112310.0,112300.0,0.012]
[1757081565510,2.44408108,112310.0,112300.0,0.012]
[1757081565913,2.44508108,112310.0,112300.0,0.014]
[1757081566114,2.69508108,112310.0,112300.0,0.001]
[1757081566313,2.69508108,112310.0,112280.0,0.3609]
[1757081566519,0.45290547,112290.0,112280.0,0.3608]
[1757081566716,2.07130547,112290.0,112280.0,0.3608]
[1757081566916,2.07118547,112290.0,112280.0,0.3608]
[1757081567110,0.69261,112290.0,112280.0,0.3608]
[1757081567307,1.14190547,112290.0,112270.0,0.3608]
[1757081567508,2.20699094,112280.0,112260.0,0.0278]
[1757081567713,0.00201,112270.0,112260.0,0.08145]
[1757081567914,0.65201,112270.0,112260.0,0.39305]
[1757081568120,0.35201,112270.0,112260.0,0.44225]
[1757081568419,0.35201,112270.0,112260.0,0.39305]
[1757081568616,0.35201,112270.0,112260.0,0.44225]
[1757081568819,0.35201,112270.0,112260.0,0.69225]
[1757081569019,0.35,112270.0,112260.0,1.14154547]
[1757081569213,0.32,112270.0,112260.0,1.14150447]
[1757081569413,0.321,112270.0,112260.0,1.14150447]
[1757081569720,0.32,112270.0,112260.0,0.781272]
[1757081569916,0.32,112270.0,112260.0,1.14150447]
[1757081570122,0.32,112270.0,112260.0,1.23185869]
[1757081570323,0.32,112270.0,112260.0,0.69354122]
[1757081570324,0.4090551,112270.0,112260.0,0.69354122]
[1757081570714,0.4090551,112270.0,112260.0,0.69369932]
[1757081570910,0.4090551,112270.0,112260.0,1.14399479]
[1757081571217,0.4090551,112270.0,112260.0,0.69469932]
[1757081571719,0.4111251,112270.0,112260.0,0.39549932]
[1757081572022,1.19042057,112270.0,112260.0,0.00689932]
[1757081572322,0.4111251,112270.0,112260.0,0.08389932]
[1757081572618,0.4111251,112270.0,112260.0,0.69469932]
[1757081572815,0.4090551,112270.0,112260.0,0.69469932]
[1757081573016,0.4111251,112270.0,112260.0,0.69479932]
[1757081573414,0.86042057,112270.0,112260.0,0.69479932]
[1757081573913,0.4090551,112270.0,112260.0,0.69479932]
[1757081576122,1.53656,112300.0,112260.0,0.69479932]
[1757081576123,0.37655561,112310.0,112300.0,3.77857943]
[1757081576329,3.21879903,112310.0,112300.0,2.72329514]
[1757081576523,2.76950356,112310.0,112300.0,2.72329514]
[1757081576724,2.76950356,112310.0,112300.0,2.72474446]
[1757081576922,2.77950356,112310.0,112300.0,2.72573435]
[1757081577428,2.77882356,112310.0,112300.0,2.72573435]
[1757081577622,2.77682356,112310.0,112300.0,2.72573435]
[1757081577818,2.77682356,112310.0,112300.0,2.23528635]
[1757081578122,1.95328716,112310.0,112300.0,0.90727391]
[1757081578339,3.12280716,112310.0,112300.0,0.36080761]
[1757081578626,3.11280716,112310.0,112300.0,0.36080761]
[1757081578828,3.12280716,112310.0,112300.0,0.36080761]
[1757081579226,2.66351169,112310.0,112300.0,0.36080761]
[1757081579425,3.12280716,112310.0,112300.0,0.36080761]
[1757081579823,2.86280716,112310.0,112300.0,0.36080761]
[1757081580029,2.87280716,112310.0,112300.0,0.36080761]
[1757081580227,2.42351169,112310.0,112300.0,0.36080761]
[1757081580426,1.24399169,112310.0,112300.0,0.36080761]
[1757081580724,0.70319169,112310.0,112300.0,1.08790308]
[1757081580925,0.4015646,112310.0,112300.0,0.99940761]
[1757081581128,0.3715646,112310.0,112300.0,1.49790308]
[1757081581727,0.3715646,112310.0,112300.0,1.58693498]
[1757081582126,0.3665646,112310.0,112300.0,1.58693498]
[1757081582326,0.3695646,112310.0,112300.0,1.58693498]
[1757081583032,0.3695646,112310.0,112300.0,1.65723969]
[1757081583219,0.3094046,112310.0,112300.0,2.10653516]
[1757081583426,0.2642846,112310.0,112300.0,1.74628292]
[1757081583620,0.04753454,112320.0,112310.0,0.089024]
[1757081583830,0.06334606,112330.0,112320.0,0.166016]
[1757081584132,0.02217,112370.0,112320.0,0.166016]
[1757081584133,0.0001,112340.0,112330.0,0.077]
[1757081584328,0.30888,112340.0,112330.0,0.8901731]
[1757081584527,0.30888,112340.0,112330.0,0.69087763]
[1757081584928,0.26,112340.0,112330.0,1.1401731]
[1757081585334,0.265,112340.0,112330.0,1.1411731]
[1757081585629,0.267,112340.0,112330.0,0.69187763]
[1757081585842,0.267,112340.0,112330.0,1.1411731]
[1757081586031,0.31588,112340.0,112330.0,0.41407763]
[1757081586437,0.34133,112340.0,112330.0,0.36487763]
[1757081587234,0.79062547,112340.0,112330.0,0.36487763]
[1757081587535,0.63133,112340.0,112330.0,0.00407763]
[1757081587735,0.35588,112340.0,112330.0,0.44187763]
[1757081588038,0.35588,112340.0,112330.0,0.8633731]
[1757081588338,0.35588,112340.0,112330.0,0.8141731]
[1757081588538,0.35588,112340.0,112330.0,0.8633731]
[1757081588939,0.35588,112340.0,112330.0,0.41407763]
[1757081589135,0.35588,112340.0,112330.0,0.8633731]
[1757081589333,0.04888,112340.0,112330.0,0.8911731]
[1757081589531,0.04888,112340.0,112330.0,2.0402131]
[1757081590240,0.04888,112340.0,112330.0,1.59091763]
[1757081590434,0.04888,112340.0,112330.0,2.0402131]
[1757081590636,0.04888,112350.0,112340.0,0.077]
[1757081590935,0.04933,112370.0,112350.0,0.0278]
[1757081591243,0.15539776,112370.0,112360.0,0.3608]
[1757081591436,0.38539776,112370.0,112360.0,0.3608]
[1757081591738,0.38539776,112370.0,112360.0,0.36494511]
[1757081592335,1.08469323,112370.0,112360.0,0.36494511]
[1757081592537,0.05896,112360.0,112350.0,0.0001]
[1757081592735,0.04888,112330.0,112320.0,0.3608]
[1757081592937,0.35888,112330.0,112320.0,0.3608]
[1757081593132,0.04888,112330.0,112320.0,0.3608]
[1757081593636,0.37888,112330.0,112320.0,0.88709547]
[1757081594138,0.62888,112330.0,112320.0,0.3608]
[1757081595240,0.37888,112330.0,112320.0,0.81009547]
[1757081595440,0.38088,112330.0,112320.0,0.86837547]
[1757081595646,0.38088,112330.0,112320.0,0.90166547]
[1757081595835,0.002,112330.0,112320.0,1.15166547]
[1757081596143,0.002,112330.0,112320.0,0.09157]
[1757081596144,0.41016,112330.0,112320.0,0.09157]
[1757081596443,0.06016,112330.0,112320.0,0.0011]
[1757081596833,0.06016,112330.0,112320.0,0.3619]
[1757081597042,0.06116,112330.0,112320.0,0.3619]
[1757081597339,0.06116,112330.0,112320.0,0.45237]
[1757081597644,0.06116,112330.0,112320.0,0.3619]
[1757081597942,0.69243,112330.0,112320.0,0.3619]
[1757081598345,0.69143,112330.0,112320.0,0.3619]
[1757081598645,1.05223,112330.0,112320.0,0.0011]
[1757081598844,1.50152547,112330.0,112320.0,0.0011]
[1757081599042,1.05223,112330.0,112320.0,0.0022462]
[1757081599242,1.50152547,112330.0,112320.0,0.0022462]
[1757081600139,0.69143,112330.0,112320.0,0.0022462]
[1757081600338,0.69143,112330.0,112320.0,0.002438]
[1757081600643,0.37143,112330.0,112320.0,0.002438]
[1757081600854,0.71143,112330.0,112320.0,0.002438]
[1757081601249,1.16072547,112330.0,112320.0,0.002438]
[1757081601548,0.71143,112330.0,112320.0,0.002438]
[1757081602146,1.07223,112330.0,112320.0,0.002438]
[1757081602341,0.46143,112330.0,112320.0,0.002438]
[1757081602541,0.43016,112330.0,112320.0,0.363238]
[1757081602746,0.06016,112330.0,112320.0,0.703708]
[1757081604148,0.003,112330.0,112320.0,1.15040229]
[1757081604343,0.003,112330.0,112320.0,0.703708]
[1757081604550,0.06016,112330.0,112320.0,0.703708]
[1757081604849,0.38016,112330.0,112320.0,1.15040229]
[1757081605148,0.06016,112330.0,112320.0,1.821588]
[1757081605351,0.003,112330.0,112320.0,2.26828229]
[1757081605750,0.323,112330.0,112320.0,2.26828229]
[1757081605942,0.003,112330.0,112320.0,0.703708]
[1757081606138,0.003,112330.0,112320.0,2.26592229]
[1757081606542,0.353,112330.0,112320.0,2.35553928]
[1757081606946,0.353,112330.0,112320.0,2.27097478]
[1757081607838,0.06016,112330.0,112320.0,1.82228049]
[1757081608037,0.06016,112330.0,112320.0,2.26897478]
[1757081608246,0.333,112330.0,112320.0,2.26897478]
[1757081608446,0.193,112330.0,112320.0,2.35798898]
[1757081608650,0.003,112330.0,112320.0,2.35798898]
[1757081609254,0.0002,112340.0,112330.0,0.1794765]
[1757081609450,0.0002,112350.0,112340.0,0.1794686]
[1757081609648,0.0002,112360.0,112350.0,0.1794607]
[1757081609846,0.07266149,112370.0,112360.0,0.09047]
[1757081610045,0.07266149,112370.0,112360.0,2.00578429]
[1757081610046,0.07246149,112370.0,112360.0,2.00578429]
[1757081610441,0.07246149,112370.0,112360.0,2.00772478]
[1757081611153,0.07246149,112370.0,112360.0,1.56103049]
[1757081611343,0.12962149,112370.0,112360.0,1.56031049]
[1757081611650,0.69962149,112370.0,112360.0,0.36284049]
[1757081611847,1.17298578,112370.0,112360.0,0.00204049]
[1757081612048,0.72629149,112370.0,112360.0,0.00204049]
[1757081612249,1.53378578,112370.0,112360.0,0.00204049]
[1757081612453,1.08809149,112370.0,112360.0,0.00304049]
[1757081612647,1.53478578,112370.0,112360.0,0.00304049]
[1757081612954,1.08809149,112370.0,112360.0,0.00304049]
[1757081613346,1.08909149,112370.0,112360.0,0.00304049]
[1757081613755,1.53578578,112370.0,112360.0,0.00304049]
[1757081615057,1.09009149,112370.0,112360.0,0.00304049]
[1757081615758,0.72929149,112370.0,112360.0,0.00304049]
[1757081615955,0.45262149,112370.0,112360.0,0.00304049]
[1757081616159,0.45262149,112370.0,112360.0,0.45431049]
[1757081616457,0.19262149,112370.0,112360.0,0.45431049]
[1757081616651,0.16262149,112370.0,112360.0,0.45431049]
[1757081617050,0.16262149,112370.0,112360.0,0.70431049]
[1757081617248,0.10546149,112370.0,112360.0,2.24676478]
[1757081617454,0.03335,112370.0,112360.0,2.24676478]
[1757081617648,0.03335,112370.0,112360.0,1.80007049]
[1757081617854,0.00335,112370.0,112360.0,2.24676478]
[1757081618256,0.00335,112370.0,112360.0,2.33574248]
[1757081618654,0.00335,112370.0,112360.0,2.24676478]
[1757081618858,0.00335,112370.0,112360.0,2.24300478]
[1757081619256,0.00335,112370.0,112360.0,2.08198268]
[1757081619661,0.00335,112370.0,112360.0,1.99300478]
[1757081619862,0.00335,112370.0,112360.0,0.45431049]
[1757081620164,0.00335,112370.0,112360.0,1.99120478]
[1757081621866,0.00335,112370.0,112360.0,2.08018268]
[1757081622259,0.0002,112380.0,112360.0,2.08018268]
[1757081622461,0.0001,112380.0,112370.0,0.89990478]
[1757081622667,0.07012117,112390.0,112380.0,0.09047]
[1757081622967,0.19992117,112390.0,112380.0,1.98186429]
[1757081623169,0.0002,112400.0,112390.0,0.09047]
[1757081623464,0.08801,112410.0,112390.0,1.47695]
[1757081623659,0.43791,112410.0,112390.0,0.36284049]
[1757081623859,0.06724,112400.0,112390.0,0.36284049]
[1757081624060,0.45311566,112400.0,112390.0,0.36284049]
[1757081624261,0.45411566,112400.0,112390.0,0.36584049]
[1757081624464,0.10411566,112400.0,112390.0,0.36584049]
[1757081624766,0.46516905,112400.0,112390.0,0.36584049]
[1757081625169,0.15516905,112400.0,112390.0,0.36584049]
[1757081625364,0.14508905,112400.0,112390.0,0.36584049]
[1757081625565,0.52508905,112400.0,112390.0,0.36584049]
[1757081625762,0.14508905,112400.0,112390.0,0.36584049]
[1757081625962,0.46243905,112400.0,112390.0,0.36484049]
[1757081626161,0.46243905,112400.0,112390.0,0.36584049]
[1757081626664,0.46343905,112400.0,112390.0,0.36484049]
[1757081626864,0.46343905,112400.0,112390.0,0.36384049]
[1757081627068,0.46443905,112400.0,112390.0,0.36384049]
[1757081627269,1.16113334,112400.0,112390.0,0.36384049]
[1757081627568,0.71443905,112400.0,112390.0,0.36384049]
[1757081627868,1.16113334,112400.0,112390.0,0.36384049]
[1757081628066,0.71443905,112400.0,112390.0,0.00304049]
[1757081628270,1.52193334,112400.0,112390.0,0.00304049]
[1757081629971,1.52293334,112400.0,112390.0,0.00304049]
[1757081630776,0.82623905,112400.0,112390.0,0.00304049]
[1757081631074,0.8497568,112400.0,112390.0,0.00304049]
[1757081631566,0.4889568,112400.0,112390.0,0.00304049]
[1757081631766,1.29645109,112400.0,112390.0,0.00304049]
[1757081631972,0.8497568,112400.0,112390.0,0.00304049]
[1757081632173,1.29645109,112400.0,112390.0,0.00304049]
[1757081632472,0.8497568,112400.0,112390.0,0.00304049]
[1757081632965,0.4889568,112400.0,112390.0,0.00304049]
[1757081633768,0.4806068,112400.0,112390.0,0.90007478]
[1757081633971,0.4234468,112400.0,112390.0,0.70338049]
[1757081634270,0.1797468,112400.0,112390.0,0.70338049]
[1757081634873,0.1797468,112400.0,112390.0,0.45338049]
[1757081635065,0.5203968,112400.0,112390.0,0.36384049]
[1757081635571,0.7703968,112400.0,112390.0,0.36384049]
[1757081635776,1.1311968,112400.0,112390.0,0.00304049]
[1757081637075,0.7703968,112400.0,112390.0,0.00304049]
[1757081637375,1.1331968,112400.0,112390.0,0.00304049]
[1757081637671,1.1311968,112400.0,112390.0,0.00304049]
[1757081638267,1.57789109,112400.0,112390.0,0.00304049]
[1757081638463,1.1311968,112400.0,112390.0,0.00304049]
[1757081638668,1.57989109,112400.0,112390.0,0.00304049]
[1757081638971,0.06738,112390.0,112360.0,0.36524]
[1757081639176,0.07575,112370.0,112360.0,0.36524]
[1757081639374,0.38575,112370.0,112360.0,0.36524]
[1757081639973,0.74655,112370.0,112360.0,0.00444]
[1757081640476,0.74755,112370.0,112360.0,0.00744]
[1757081642569,1.80679,112370.0,112360.0,0.00744]
[1757081642973,1.80643,112370.0,112360.0,0.00744]
[1757081643275,0.74755,112370.0,112360.0,0.00744]
[1757081643473,1.80587,112370.0,112360.0,0.00744]
[1757081643877,0.07344,112350.0,112320.0,0.39349]
[1757081644178,0.0563,112310.0,112300.0,0.20040276]
[1757081644767,0.3663,112310.0,112300.0,0.20040276]
[1757081645069,0.0763,112310.0,112300.0,0.20040276]
[1757081645273,0.41207545,112310.0,112300.0,0.20040276]
[1757081645675,0.07207545,112310.0,112300.0,0.08954]
[1757081646178,0.4263,112310.0,112300.0,0.78623429]
[1757081646374,0.0563,112310.0,112300.0,0.33954]
[1757081646570,0.4263,112310.0,112300.0,0.33954]
[1757081646973,0.7871,112310.0,112300.0,0.25]
[1757081647476,0.7881,112310.0,112300.0,0.251]
[1757081647676,0.4273,112310.0,112300.0,0.05785]
[1757081647876,0.4984673,112310.0,112300.0,0.05785]
[1757081648074,0.14421005,112310.0,112300.0,0.05785]
[1757081648282,0.51421005,112310.0,112300.0,0.09054]
[1757081648878,0.87501005,112310.0,112300.0,0.09054]
[1757081649179,0.87501005,112310.0,112300.0,0.001]
[1757081649375,1.35418434,112310.0,112300.0,0.001]
[1757081649580,2.40590434,112310.0,112300.0,0.001]
[1757081649783,2.65590434,112310.0,112300.0,0.001]
[1757081650472,2.20793005,112310.0,112300.0,0.001]
[1757081650672,0.90749005,112310.0,112300.0,0.001]